Cogmind - Beta 16 @@@ ROGUE MODE // 2025.10.28 @ 19:33:30 Player: Gilvian Result: Destroyed by D-53 Grenadier with Mini Grenade Launcher Performance ------------- Evolutions (0) 0 Regions Visited (2) 400 Robots Destroyed (11) 55 Value Destroyed (279) 279 Prototype IDs (3) 60 Alien Tech Used (0) 0 Bonus (0) 0 TOTAL SCORE: 794 Bonus ------- None Cogmind --------- Core Integrity 0/250 Matter 285/300 Energy 250/250 System Corruption 0% Temperature Cool (0) Movement Walking (120) Location -10/Mines Parts ------- > --- POWER (1) -------- Ion Engine > --- PROPULSION (2) --- Aluminum Leg Aluminum Leg > --- UTILITY (2) ------ Small Storage Unit Hacking Suite > --- WEAPON (2) ------- Grenade Launcher Heavy Hammer > --- INVENTORY (8) ---- Weight Redist. System Heavy Hammer Mining Claw Peak State ------------ > --- POWER ------------ Light Ion Engine > --- PROPULSION ------- Aluminum Leg Aluminum Leg > --- UTILITY ---------- Small Storage Unit Hacking Suite > --- WEAPON ----------- Welding Torch Heavy Hammer > --- INVENTORY -------- Ion Engine Weight Redist. System Grenade Launcher Heavy Hammer Mining Claw [Rating: 10] Favorites ----------- Power Light Ion Engine Engine Light Ion Engine Propulsion Aluminum Leg Leg Aluminum Leg Wheel Compact Wheel Utility Small Storage Unit Storage Small Storage Unit Hackware Hacking Suite Weapon Mining Claw Ballistic Gun Assault Rifle Launcher Grenade Launcher Special Weapon Welding Torch Impact Weapon Heavy Hammer Slashing Weapon Mining Claw Special Melee Weapon Datajack Build | -11 -10 -10 ------- Run | Yrd Mat Min Slots Evolved . | . . . Power . | . . . Propulsion . | . . . Utility . | . . . Weapon . | . . . Parts Attached 16 | 5 7 4 Power 2 | 1 . 1 Engine 2 | 1 . 1 Core . | . . . Reactor . | . . . Propulsion 5 | 1 2 2 Treads . | . . . Leg 4 | . 2 2 Wheel 1 | 1 . . Hover . | . . . Flight . | . . . Utility 2 | 1 1 . Device . | . . . Storage 1 | 1 . . Processor . | . . . Hackware 1 | . 1 . Protection . | . . . Artifact . | . . . Weapon 7 | 2 4 1 Energy Gun . | . . . Energy Cannon . | . . . Ballistic Gun 2 | 2 . . Ballistic Cannon . | . . . Launcher 1 | . . 1 Special Weapon 1 | . 1 . Impact Weapon 1 | . 1 . Slashing Weapon 1 | . 1 . Piercing Weapon . | . . . Special Melee Weapon 1 | . 1 . Unidentified Prototypes . | . . . Parts Lost 4 | . 2 2 Power 1 | . . 1 Propulsion 1 | . 1 . Utility . | . . . Weapon 2 | . 1 1 Highest Loss Streak 2 | . 2 2 To Critical Strikes . | . . . Average Backups 3 | . 3 3 Power . | . . . Propulsion . | . . . Utility . | . . 1 Weapon 2 | . 2 2 Tool/Special . | . . . Unused Backups 3 | . 1 2 Power . | . . . Propulsion . | . . . Utility 2 | . 1 1 Weapon 1 | . . 1 Tool/Special . | . . . Average Slot Usage (%) 83 | . 81 92 Engine 13 | . 13 12 Leg 9 | . 6 28 Wheel 7 | . 8 . Storage 14 | . 14 14 Hackware 12 | . 12 14 Ballistic Gun 5 | . 6 . Special Weapon 3 | . 3 2 Impact Weapon 3 | . 2 14 Slashing Weapon 6 | . 7 . Special Melee Weapon 5 | . 6 . Peak Build Rating 10 | 5 10 10 Average Rating 7 | 2 7 9 On Entrance 5 | . 5 10 Avg Prop Armor Cover (%) . | . . . Naked Turns . | . . . Heaviest Build 16 | 11 12 16 Greatest Support 20 | 16 20 20 Greatest Overweight (x) 3 | . 3 . Average Overweight (x) . | . . . Largest Inventory Capacity 8 | 8 8 8 Average Capacity 7 | 6 8 8 Most Carried 7 | 4 7 6 Average Carried 3 | . 3 3 Final Capacity 8 | 8 8 8 Final Carried 5 | . 5 3 Class Distribution -------------------- 100% | Mutant Dominant Class ---------------- Mutant | -10/Materials Mutant | -10/Mines Resources | -11 -10 -10 ----------- Run | Yrd Mat Min Matter Collected 407 | 156 226 25 Remotely . | . . . Salvage Created 336 | . 255 81 Parts 18 | . 14 4 Haulers Intercepted . | . . . Recyclers Shooed . | . . . Parts Field Recycled . | . . . Retrieved Matter . | . . . Parts Self-Destructed . | . . . Prevented . | . . . Parts Restored . | . . . Kills | -11 -10 -10 ------- Run | Yrd Mat Min Combat Hostiles Destroyed 10 | . 7 3 Melee 9 | . 6 3 Guns 1 | . 1 . Classes Destroyed 5 | . 4 1 Operator 1 | . 1 . Watcher 1 | . 1 . Swarmer 3 | . 3 . Grunt 6 | . 4 2 Assembled 1 | . . 1 Best Kill Streak 3 | . 3 2 Combat Bots Only 2 | . 2 2 Max Kills in Single Turn 1 | . 1 1 Gunslinging . | . . . Exploded . | . . . Melee 1 | . 1 1 Uniques/NPCs Destroyed . | . . . Combat | -11 -10 -10 -------- Run | Yrd Mat Min Hostile Shots Fired 60 | . 37 23 Missed 10 | . 6 4 Hits 50 | . 31 19 Projectile 50 | . 31 19 AOE 2 | . . 2 Damage Taken 675 | . 345 330 Core 264 | . 185 79 Absorbed by Shields . | . . . Regen/Repaired (Parts) 18 | . 18 . Core Remaining (%) 100 | 100 . . Volleys Fired 9 | . 9 . Largest 2 | . 2 . Hottest 40 | . 40 . Shots Fired 17 | . 17 . Gun 16 | . 16 . Cannon . | . . . Launcher . | . . . Special 1 | . 1 . Kinetic 16 | . 16 . Thermal 1 | . 1 . Explosive . | . . . Electromagnetic . | . . . Robot Hit Streak 7 | . 7 . Robot Miss Streak 2 | . 2 . Penetration Max . | . . . Secondary Targets . | . . . Shots Hit Robots 47 | . 39 8 Core Hits 14 | . 11 3 Critical Kills 1 | . . 1 Critical Parts Destroyed 1 | . . 1 Critical Strikes 2 | . . 2 Smash 2 | . . 2 Melee Attacks 50 | . 40 10 Impact 10 | . . 10 Slashing 21 | . 21 . Piercing . | . . . Sneak Attacks 16 | . 16 . Combat Hostiles 1 | . 1 . Follow-up Attacks . | . . . Damage Inflicted 688 | . 406 282 Guns 99 | . 99 . Cannons . | . . . Explosions . | . . . Melee 589 | . 307 282 Ramming . | . . . Kinetic 99 | . 99 . Thermal . | . . . Explosive . | . . . Electromagnetic . | . . . Impact 282 | . . 282 Slashing 307 | . 307 . Piercing . | . . . Highest Corruption . | . . . Average Corruption . | . . . Corruption Purged . | . . . Corruption Blocked . | . . . Overload Shots . | . . . Overflow Damage 55 | . . 55 Projectiles . | . . . Explosions . | . . . Melee 55 | . . 55 Knockbacks . | . . . Impact . | . . . Kinetic . | . . . Secondary . | . . . Self-Inflicted Damage . | . . . Shots . | . . . Rammed . | . . . Targets Rammed . | . . . Kicked . | . . . Crushed . | . . . Highest Temperature 12 | . 12 . Average Temperature 7 | . 7 . Received Heat Transfer 210 | . 96 114 Siege Activations . | . . . Martial Activations . | . . . Shielding Activations . | . . . Robots Disrupted . | . . . Combat Hostiles . | . . . Robots Corrupted . | . . . Combat Hostiles . | . . . Parts Fried . | . . . Impact Corruptions 1 | . . 1 Robots Melted . | . . . Combat Hostiles . | . . . Parts Melted . | . . . Heat Transferred . | . . . Parts Sabotaged . | . . . Parts Stolen . | . . . Parts Stripped . | . . . Power Chain Reactions . | . . . Alert | -11 -10 -10 ------- Run | Yrd Mat Min Maximum Alert Level . | . . . Low Security (%) 100 | 100 100 100 Level 1 . | . . . Level 2 . | . . . Level 3 . | . . . Level 4 . | . . . Level 5 . | . . . High Security . | . . . Max Security . | . . . Peak Influence 68 | . 68 30 Initial . | . . . Average 9 | . 10 6 Influence Increases 263 | . 213 50 Destroy 0b10 Robot/C 180 | . 140 40 Destroy 0b10 Robot/NC 10 | . 10 . Destroy Leader 52 | . 42 10 Successful Hack 5 | . 5 . Destroy Structure 1 | . 1 . Lose Combat Pursuer 15 | . 15 . Influence Decreases 263 | . 213 50 Time Decay 253 | . 213 40 Lost Part 10 | . . 10 Squads Dispatched 5 | . 5 . Investigation 3 | . 3 . Extermination . | . . . Reinforcement 2 | . 2 . Assault . | . . . Garrison . | . . . Intercept . | . . . Searches Triggered . | . . . Construction Impeded . | . . . Haulers Reinforced . | . . . Active Scanning Responses . | . . . Cargo Convoy Interrupts . | . . . Stealth | -11 -10 -10 --------- Run | Yrd Mat Min Distress Signals 2 | . 2 . Communications Jammed . | . . . Distress Signals . | . . . Times Spotted 19 | . 13 6 Peak Tracking Total 4 | . 4 3 Tactical Retreats 1 | . 1 . Traps | -11 -10 -10 ------- Run | Yrd Mat Min Traps Triggered 4 | . 4 . Indirectly . | . . . Trap Hack Attempts . | . . . Triggered . | . . . Disarmed . | . . . Reprogrammed . | . . . Reused . | . . . Traps Extracted . | . . . Installed . | . . . Triggered . | . . . Machines | -11 -10 -10 ---------- Run | Yrd Mat Min Machines Disabled . | . . . Max in Single Turn . | . . . Machines Repaired . | . . . Machines Dismantled . | . . . Machines Sabotaged . | . . . Overloaded Fab Kills . | . . . Hacking | -11 -10 -10 --------- Run | Yrd Mat Min Machines Accessed 8 | . 7 1 Terminals 6 | . 5 1 Fabricators . | . . . Repair Stations 1 | . 1 . Recycling Units 1 | . 1 . Scanalyzers . | . . . Garrison Access . | . . . Total Hacks 20 | . 18 2 Successful 15 | . 14 1 Failed 5 | . 4 1 Catastrophic . | . . . Database Lockouts . | . . . Manual . | . . . Terminals 16 | . 14 2 Fabricators . | . . . Repair Stations 2 | . 2 . Recycling Units 2 | . 2 . Scanalyzers . | . . . Garrison Access . | . . . Terminal Hacks 11 | . 10 1 Record 5 | . 4 1 Prototype ID Bank 2 | . 2 . Branch Access Points 1 | . 1 . Emergency Access Points 1 | . 1 . Hauler Manifests 1 | . 1 . Registered Components 1 | . 1 . Fabricator Hacks . | . . . Repair Station Hacks 2 | . 2 . Scan Component 1 | . 1 . Repair 1 | . 1 . Recycling Unit Hacks 2 | . 2 . Process 1 | . 1 . Report Inventory 1 | . 1 . Scanalyzer . | . . . Garrison Access Hacks . | . . . Unauthorized Hacks . | . . . Terminals . | . . . Fabricators . | . . . Repair Stations . | . . . Recycling Units . | . . . Scanalyzers . | . . . Garrison Access . | . . . Data Cores Recovered . | . . . Used . | . . . Hacking Detections 5 | . 5 . Full Trace Events 1 | . 1 . Feedback Events . | . . . Feedback Blocked . | . . . Robot Schematics Acquired . | . . . Robots Built . | . . . Authchips . | . . . Time . | . . . Total Robot Build Rating . | . . . Part Schematics Acquired . | . . . Parts Built . | . . . Authchips . | . . . Time . | . . . Total Part Build Rating . | . . . Part Studies Acquired . | . . . Parts Repaired 1 | . 1 . Time 13 | . 13 . Parts Recycled . | . . . Recycled Matter 229 | . 229 . Retrieved Matter . | . . . Retrieved Components . | . . . Parts Scanalyzed . | . . . Part Schematics Acquired . | . . . Parts Damaged . | . . . Bothacking | -11 -10 -10 ------------ Run | Yrd Mat Min Used RIF Installer . | . . . Robots Hacked 8 | . 8 . Non-combat 7 | . 7 . Combat 1 | . 1 . Robot Hacks Applied 13 | . 13 . parse_system 1 | . 1 . no_distress 10 | . 10 . find_recycling 1 | . 1 . check_alert 1 | . 1 . Relay Couplers Released . | . . . Fabnet Peak Effective % . | . . . Robots Rewired . | . . . Allies Hacked . | . . . Hacks Repelled . | . . . Allies | -11 -10 -10 -------- Run | Yrd Mat Min Total Allies . | . . . Largest Group . | . . . Highest-Rated Group . | . . . Highest-Rated Ally . | . . . Total Orders . | . . . Ally Attacks . | . . . Total Damage . | . . . Kills . | . . . Allies Corrupted . | . . . Allies Melted . | . . . Intel | -11 -10 -10 ------- Run | Yrd Mat Min Active Infowar (turns) . | . . . Robot Analysis Total . | . . . Derelict Logs Recovered . | . . . Drone Launches . | . . . Drone Recoveries . | . . . Exploration | -11 -10 -10 ------------- Run | Yrd Mat Min Turns Passed 1530 | 36 1309 185 Spaces Moved 1117 | 27 974 116 Core 8 | 2 6 . Treads . | . . . Legs 447 | . 331 116 Wheels 662 | 25 637 . Hover . | . . . Flight . | . . . Fastest Speed 50 | 50 100 120 Average Speed 113 | 96 113 120 Slowest Speed 200 | 100 200 120 Overloaded Moves . | . . . Propulsion Burnouts . | . . . Robots Hopped . | . . . Potential Cave-ins . | . . . Cave-ins Triggered . | . . . Exploration Rate (%) 39 | 3 94 22 Regions Visited 2 Branch Regions 1 Pre-discovered Areas . | . . . Known Exits Taken 1 | . 1 . Unknown Exits Taken 1 | 1 . . Scrap Searched . | . . . Spaces Dug . | . . . Terrain Destroyed . | . . . Melee . | . . . Projectile . | . . . AOE . | . . . Terrain Rammed . | . . . Walls Destroyed . | . . . Machines Disabled . | . . . Actions | -11 -10 -10 --------- Run | Yrd Mat Min Total 1296 | 36 1114 146 Wait 75 | . 63 12 Move 1115 | 26 973 116 Hop . | . . . Pick Up 22 | 5 15 2 Fast Attach . | . . . Attach 15 | 5 8 2 Detach . | . . . Swap 5 | . 3 2 Drop 5 | . 3 2 Fire 9 | . 9 . Melee 50 | . 40 10 Ram . | . . . Kick . | . . . Crush . | . . . Escape Stasis . | . . . Rewire . | . . . Trap . | . . . Miscellaneous . | . . . Route ------- -11/Scrapyard -10/Materials (discovered 3 exits: [*Mat x2] / *Min) -10/Mines History --------- Turn | Location | Event 21 | -11/Scrapyard | Discovered new exit (range 16) 37 | -11/Scrapyard | Entered Materials 38 | -10/Materials | Met a group of wandering Federalists 273 | -10/Materials | Discovered new exit (range 12) 313 | -10/Materials | Build established: Mutant 533 | -10/Materials | Discovered new exit (range 3) 547 | -10/Materials | Identified exit to Mines 778 | -10/Materials | Repaired Mining Claw 819 | -10/Materials | Core integrity fell below 50% 1346 | -10/Materials | Entered Mines 1365 | -10/Mines | Core integrity fell below 20% 1485 | -10/Mines | Assembled infested the area 1531 | -10/Mines | Destroyed by D-53 Grenadier with Mini Grenade Launcher Last Messages --------------- 01372_ Acquired 10 matter. 01378_ Acquired Aluminum Leg. 01385_ Dropped Aluminum Leg. 01393_ Connecting with Terminal... >>Query(TF Node) These relay nodes for monitoring and facilitating traffic have resulted in much greater efficiency throughout [Complex 0b10]. Although primarily responsible for pattern analysis aimed at long-term improvements, eventually TF Nodes could be expanded to include more immediate detection and response efforts in support of nearby garrisons. 01485_ ALERT: Infestation in the mines, dispatching Demolisher response squad. 01522_ as-30560 destroyed. 01524_ Acquired 15 matter. 01530_ C-45 Heavy ARC bursts open, deploying its payload. 01530_ D-53 Grenadier unfolds itself. Map ----- +----------------------------------------------------+ | | | | | | | | | | | | | | | ?????????????????????????????????????????????????? | | ??????????????????????????????????????##########?? | | ??????????????????????????????????????# %[%==#?? | | ??????????????????????????????????????# [ #?? | | ??????????????????????????????????????# #?? | | ??????????????????????????????????????# """#?? | | ??????????????????????????????####????# """#?? | | ?????????????????????????????## ##??## """#?? | | ????????????????????????????## ##?#T #?? | | ???????????????????????????## ######## ###?? | | ???????????????????????????# #???? | | ???????????????????????????# #???? | | ???????????????????????????## ## ##???? | | ???????????????# ########???# ####### #????? | | ???????????????# #???# #?????## #????? | | ???????????????####### ###### ##??????# #????? | | ?????????????????????# #####????????# ##???? | | ??????????????????????# #????????#### #???? | | ??????????????????????# @ #????????## #???? | | ??????????????????????## dd #??????## #???? | | ??????????????????????# % ##?????## ##???? | | ??????????????????????### ##?????## #????? | | ??????????? ??????## ######## ##???? | | ????????????# # ##??? | | ??????????????????# #??? | | ??????????????????## ## ########## #?? | | ???????????????????##??# #????????# #### #? | | ???????????????????????# #????????# #??## #? | | ???????????????????????# #????????# #???## # | | ???????????????????????# #????????# #?????# # | | ???????????????????????# #????????# #??????# ## | | ???????????????????????# ?????????# #???????###? | | ???????????????????????# ?????????# #??????????? | | ???????????????????????# ?????????# #??????????? | | ???????????????????????# ?????????# #??????????? | | ???????????????????????? ???????? #??????????? | | ???????????????????????? ??????? #??????????? | | ???????????????????????? ?????? #??????????? | | ?????????????????????????????? ??????????? | | ?????????????????????????????# ## ??????????? | | ?????????????????????????????## ###?## ??????????? | | ??????????????????????????????# ?????? ??????????? | | ??????????????????????????????#??????? ??????????? | +----------------------------------------------------+ Best States ------------- Heat Dissipation 25 Energy Generation 10 Energy Capacity 250 Matter Stores 300 Matter Capacity 300 Sight Range 16 Terrain Scan Density 10 Evasion (%) 55 Offensive Hacking 10 Item Schematics ----------------- None Robot Schematics ------------------ None Fabricated ------------ Nothing Repaired ---------- Mining Claw | 55% | -10/Materials Studied --------- None Alien Tech Used ----------------- None Achievements -------------- None Challenges ------------ None Game ------ Seed ScrapoidCannonCapacitor Manual? 0 Play Time 00:20:31 Cumulative 8.5 hours Start 2025.10.28 @ 18:56:24 End 2025.10.28 @ 19:33:30 Sessions 1 Manual Loads 0 Difficulty Rogue Special Mode None Game No. 28 Rogue 28 Adventurer 0 Explorer 0 Win Type - Total 0 Types 0/0/0/0/0/0/0/0/0/0 Lore% 5 Gallery% 10 Achievement% 11 Wizard Run 0 Options --------- Layout 1 ASCII 0 Keyboard 0 Movement Numpad Keybinds 0 Fullscreen 1 Font 24/Smallcaps Map View 50x35 Zoom Use 0% Tactical HUD 1 Map Filters NONE Filters NONE Steam 1 RUN: 9cdf199b-0c73-434a-990a-f204eda45a03